fUST/lending_fUST_20251031
["ID","MTS","AMOUNT","RATE_DAILY","PERIOD"]
[392730703,1761880240898,-500.0,0.0003599,30]
[392730704,1761880240908,-300.0,0.00036,120]
[392730707,1761880240917,-53.24326092,0.0003621,7]
[392730709,1761880240931,-446.75673908,0.0003621,7]
[392730711,1761880240940,-520.5912282,0.00036484,7]
[392730713,1761880240949,-151.0,0.000365,11]
[392730715,1761880240960,-211.33083141,0.00036632,2]
[392730717,1761880240969,-225.71234115,0.0003671,16]
[392730719,1761880240977,-402.68046382,0.000368,2]
[392730721,1761880240987,-821.64,0.000368,80]
[392730723,1761880240996,-151.0,0.000368,11]
[392730725,1761880241005,-4125.54016635,0.00036807,14]
[392730727,1761880241016,-1998.85,0.00036807,14]
[392731012,1761880243141,-500.0,0.00035109,7]
[392731014,1761880243150,-3856.61335888,0.00036807,14]
[392731016,1761880243159,-1291.55,0.00036897,10]
[392731018,1761880243169,-941.72824628,0.00036897,3]
[392731020,1761880243179,-500.0,0.000369,30]
[392731022,1761880243188,-500.0,0.000369,30]
[392731024,1761880243197,-163.03443186,0.00036906,15]
[392731026,1761880243206,-10868.6537114,0.00036907,2]
[392731028,1761880243214,-3917.27700358,0.00036907,2]
[392731030,1761880243226,-468.942,0.00036907,2]
[392731219,1761880422465,150.0,0.0002589,2]
[392731220,1761880734981,-717.329,0.00034562,120]
[392731221,1761880735011,-504.52391419,0.00036705,2]
[392731222,1761880735047,-158.97436448,0.00036805,120]
[392731223,1761880735180,-403.89093407,0.00036899,2]
[392731224,1761880735210,-1221.0,0.00036904,3]
[392731225,1761880735239,-1001.46957913,0.00036905,2]
[392731226,1761880735414,-1835.63441626,0.00036905,2]
[392731227,1761880803132,8218.27718019,0.00017429,2]
[392731228,1761880946745,-221.08155719,0.00027597,7]
[392731229,1761881059752,429.73512818,0.000275,100]
[392731230,1761881063967,-191.79587831,0.00026411,20]
[392731231,1761881063990,-143.67868174,0.000275,100]
[392731232,1761881070120,-295.87677975,0.000275,100]
[392731233,1761881074664,-155.71259973,0.000275,100]
[392731234,1761881081690,-164.23892824,0.000275,100]
[392731235,1761881084089,-166.746497,0.000275,100]
[392731236,1761881086501,-160.81816635,0.000275,100]
[392731237,1761881088648,-506.69648869,0.000275,100]
[392731238,1761881092234,-160.7605122,0.000275,100]
[392731239,1761881092994,-160.7605122,0.000275,100]
[392731276,1761881174672,-300.0,0.00027499,2]
[392731277,1761881174706,-1745.03429408,0.000275,100]
[392731278,1761881175013,-4090.06858816,0.000275,100]
[392731279,1761881177563,-1819.87282368,0.000275,100]
[392731280,1761881177593,-300.0,0.00028049,30]
[392731281,1761881177622,-300.0,0.00028049,30]
[392731282,1761881177651,-300.0,0.00028049,30]
[392731283,1761881177681,-300.0,0.00028049,30]
[392731284,1761881177711,-300.0,0.00028049,30]
[392731285,1761881177743,-300.0,0.00028049,30]
[392731286,1761881177773,-300.0,0.00028049,30]
[392731287,1761881177803,-300.0,0.00028049,30]
[392731288,1761881177833,-300.0,0.00028049,30]
[392731289,1761881177864,-300.0,0.00028049,30]
[392731290,1761881177894,-60.26435264,0.00028049,30]
[392731291,1761881178007,-239.73564736,0.00028049,30]
[392731292,1761881178036,-300.0,0.00028049,30]
[392731293,1761881178066,-300.0,0.00028049,30]
[392731294,1761881178097,-300.0,0.00028049,30]
[392731295,1761881178127,-300.0,0.00028049,30]
[392731296,1761881178156,-501.78435636,0.000281,5]
[392731297,1761881178185,-502.09037332,0.000281,5]
[392731298,1761881178213,-501.1425372,0.000281,5]
[392731299,1761881178239,-512.2650542,0.000281,5]
[392731300,1761881178265,-501.60670923,0.000281,5]
[392731301,1761881178291,-512.37879781,0.000281,5]
[392731302,1761881178323,-458.00304904,0.00028609,30]
[392731303,1761881180630,-141.99695096,0.00028609,30]
[392731304,1761881180657,-412.0,0.00029714,2]
[392731305,1761881180687,-720.0,0.0003147,30]
[392731306,1761881180988,506.95548307,0.000281,5]
[392731307,1761881181669,500.0,0.000281,5]
[392731308,1761881181694,1135.53412834,0.00029744,5]
[392731309,1761881181740,1000.0,0.00028648,5]
[392731310,1761881181768,502.59270574,0.000281,5]
[392731311,1761881181792,1500.0,0.00029196,5]
[392731312,1761881182069,516.13926463,0.000281,5]
[392731313,1761881185205,301.7578338,0.00028648,5]
[392731314,1761881185632,-301.7578338,0.000281,5]
[392731326,1761881312860,164.27147424,0.00024,2]
[392731328,1761881317896,161.41278267,0.0002,2]
[392731378,1761881432312,-377.93482196,0.00028,2]
[392731380,1761881432321,-212.84984755,0.00029483,2]
[392731381,1761881432330,-409.21533049,0.00034879,30]
[392731382,1761881432340,-389.52049321,0.00034879,30]
[392731383,1761881432350,-175.11888667,0.00035989,15]
[392731385,1761881432359,-397.87438864,0.00035989,15]
[392731386,1761881432368,-500.0,0.00035989,15]
[392731387,1761881432377,-219.80561494,0.00035989,15]
[392731388,1761881432388,-280.19438506,0.00035989,15]
[392731389,1761881432398,-649.08814896,0.00035989,2]
[392731390,1761881432407,-500.0,0.00035989,15]
[392731391,1761881432416,-500.0,0.00035989,15]
[392731392,1761881432425,-500.0,0.00035989,15]
[392731393,1761881432434,-500.0,0.00035989,15]
[392731394,1761881432443,-259.03828894,0.00035989,15]
[392731395,1761881432452,-500.0,0.00035989,15]
[392731397,1761881432461,-500.0,0.00035989,15]
[392731398,1761881432470,-500.0,0.00035989,15]
[392731399,1761881432479,-500.0,0.00035989,15]
[392731400,1761881432489,-500.0,0.00035989,15]
[392731401,1761881432498,-500.0,0.00035989,15]
[392731402,1761881432508,-500.0,0.00035989,15]
[392731403,1761881432517,-491.07225123,0.00035989,15]
[392731404,1761881432526,-398.14873434,0.00035989,15]
[392731405,1761881432535,-500.0,0.00035989,15]
[392731406,1761881432543,-500.0,0.00035989,2]
[392731407,1761881432552,-500.0,0.00035989,2]
[392731408,1761881432560,-1946.49614492,0.0003599,2]
[392731409,1761881432571,-368.08640467,0.0003599,2]
[392731416,1761881438145,-500.0,0.00035989,2]
[392731417,1761881438155,-500.0,0.00035989,2]
[392731418,1761881438164,-500.0,0.00035989,2]
[392731419,1761881438175,-107.44801557,0.0003599,2]
[392731420,1761881438186,-1018.95959998,0.0003599,2]
[392731421,1761881438197,-5100.70006066,0.0003599,2]
[392731422,1761881438208,-31026.28639901,0.0003599,2]
[392731423,1761881438220,-720.62718403,0.0003599,2]
[392731424,1761881438235,-425.78757059,0.0003599,2]
[392731425,1761881438246,-3037.6040217,0.0003599,2]
[392731426,1761881438259,-3912.81558953,0.0003599,2]
[392731427,1761881438271,-455.18249544,0.0003599,2]
[392731428,1761881438282,-1972.22358985,0.0003599,2]
[392731429,1761881438296,-4517.25879562,0.0003599,2]
[392731459,1761881440821,-2121.13066738,0.0003599,2]
[392731461,1761881440830,-500.0,0.00036,5]
[392731463,1761881440839,-1190.93876225,0.00036151,2]
[392731465,1761881440849,-500.0,0.00036262,2]
[392731467,1761881440858,-1190.93876225,0.00036289,2]
[392731469,1761881440867,-239.12588178,0.00036411,2]
[392731470,1761881440877,-892.55161307,0.00036472,2]
[392731473,1761881440889,-298.38714918,0.00036472,2]
[392731474,1761881440898,-1000.0,0.00036548,5]
[392731476,1761881440908,-300.0,0.00036708,30]
[392731478,1761881440917,-300.0,0.00036708,30]
[392731480,1761881440926,-300.0,0.00036708,30]
[392731482,1761881440935,-49.86002876,0.00036708,30]
[392731485,1761881440950,-250.13997124,0.00036708,30]
[392731486,1761881440959,-300.0,0.00036708,30]
[392731488,1761881440968,-300.0,0.00036708,30]
[392731490,1761881440978,-300.0,0.00036708,30]
[392731492,1761881440987,-202.28500444,0.00036708,30]
[392731525,1761881563378,262.58,0.00013699,2]
[392731526,1761881849452,217.25244,0.0003701,50]
[392731527,1761882157822,-180.82146837,0.00028388,7]
[392731528,1761882160468,-69.74025381,0.00028388,7]
[392731594,1761882638394,-212.84984754,0.00031035,30]
[392731595,1761882638404,-999.0,0.00034638,2]
[392731596,1761882638414,-893.5982528,0.00035233,2]
[392731597,1761882638425,-402.3611725,0.00035795,30]
[392731598,1761882638435,-273.28672203,0.0003599,2]
[392731599,1761882638445,-426.58349267,0.0003599,2]
[392731600,1761882638455,-3025.2068223,0.00036038,2]
[392731601,1761882638464,-158.82,0.00036038,2]
[392731602,1761882638474,-792.82,0.00036695,10]
[392731603,1761882638483,-1511.86,0.00036695,10]
[392731604,1761882638492,-315.56619404,0.00036704,15]
[392731605,1761882638501,-298.642731,0.00036704,15]
[392731606,1761882638510,-167.80660118,0.00036704,15]
[392731607,1761882638520,-500.0,0.00036704,15]
[392731608,1761882638529,-433.12763715,0.00036704,15]
[392731609,1761882638538,-200.0,0.00036704,2]
[392731610,1761882638547,-279.43653202,0.00036704,15]
[392731611,1761882638557,-604.03245005,0.00036705,4]
[392731612,1761882638569,-6144.92017638,0.00036705,4]
[392731660,1761882640710,-34357.34465222,0.00036705,4]
[392731710,1761882646547,-1259.88,0.00036695,10]
[392731711,1761882646556,-1711.51332181,0.00036705,4]
[392731712,1761882646598,-881.335689,0.00036705,4]
[392731720,1761883062119,233.463039,0.00013699,2]
[392731721,1761883062321,233.463039,0.00020187,2]
[392731722,1761883065096,-233.463039,0.00026676,2]
[392731755,1761883683665,171.52,0.00018282,3]
[392731799,1761883831733,-186.90689534,0.00031035,30]
[392731801,1761883831743,-233.463039,0.00033165,2]
[392731803,1761883831753,-250.74767062,0.00033305,2]
[392731805,1761883831762,-187.5277915,0.00035036,2]
[392731807,1761883831772,-328.0,0.00035554,3]
[392731809,1761883831781,-4362.0,0.00035555,2]
[392731811,1761883831791,-300.0,0.00035654,2]
[392731813,1761883831800,-234.0,0.00035654,3]
[392731815,1761883831809,-3500.0,0.00035655,2]
[392731817,1761883831819,-325.7105145,0.00036206,30]
[392731819,1761883831828,-348.5339472,0.00036206,30]
[392731821,1761883831838,-382.2452215,0.00036206,30]
[392731823,1761883831847,-591.2861859,0.00036206,30]
[392731825,1761883831856,-299.3567947,0.00036206,30]
[392731827,1761883831865,-591.2861859,0.00036206,30]
[392731829,1761883831874,-299.3567947,0.00036206,30]
[392731831,1761883831884,-591.2861859,0.00036206,30]
[392731833,1761883831893,-591.2861859,0.00036206,30]
[392731835,1761883831902,-591.2861859,0.00036206,30]
[392731837,1761883831911,-565.418861,0.00036206,30]
[392731839,1761883831921,-150.0,0.00036349,2]
[392731841,1761883831930,-150.6161789,0.00036383,2]
[392731843,1761883831940,-1414.62,0.00036595,10]
[392731845,1761883831949,-80325.62762566,0.00036605,4]
[392731847,1761883831960,-7317.27792142,0.00036605,4]
[392731851,1761883831975,-25465.31773588,0.00036605,4]
[392732072,1761883837627,-220.89633583,0.00036604,15]
[392732074,1761883837637,-600.763887,0.00036604,15]
[392732076,1761883837646,-3266.15425307,0.00036605,4]
[392732078,1761883837683,-14536.5989462,0.00036605,4]
[392732112,1761883839897,-150.0,0.00036416,2]
[392732113,1761883839906,-23900.47993132,0.00036605,4]
[392732114,1761883839917,-6058.72405173,0.00036605,4]
[392732127,1761883842885,-542.41,0.00036605,4]
[392732130,1761883845735,-1000.0,0.00036605,4]
[392732131,1761883846685,-1816.14421722,0.00036605,4]
[392732132,1761883846696,-1980.61212347,0.00036605,4]
[392732133,1761883846706,-285.08443914,0.00036605,4]
[392732138,1761884100426,201.1665728,0.0002589,2]
[392732140,1761884107018,153.50400643,0.00037775,50]
[392732141,1761884107654,506.1632078,0.00037775,50]
[392732142,1761884132684,157.42942248,0.00025863,18]
[392732163,1761884302612,-217.42244972,0.00029189,7]
[392732333,1761884413145,204.0,0.0002589,2]
[392732416,1761884445024,160.0,0.00025863,18]
[392732590,1761884610913,409.13588362,0.00037019,50]
[392732596,1761884904477,10000.01,0.00025,15]
[392732597,1761884904501,10000.01,0.00025,15]
[392732598,1761884904522,10000.01,0.00025,15]
[392732599,1761884904543,10000.01,0.00025,15]
[392732600,1761884904564,10000.01,0.00025,15]
[392732601,1761884904588,10000.01,0.00025,15]
[392732602,1761884904609,10000.01,0.00025,15]
[392732603,1761884904629,10000.01,0.00025,15]
[392732604,1761884904651,10000.01,0.00025,15]
[392732605,1761884904672,9999.91,0.00025,15]
[392732606,1761884911472,794.12905283,0.0002,120]
[392732607,1761884911818,1860.4987192,0.00037019,120]
[392732608,1761885029331,207.03105604,0.0002589,2]
[392732650,1761885031793,-152.36743816,0.0002905,2]
[392732652,1761885031802,-388.7490295,0.00034017,2]
[392732654,1761885031812,-283.32353234,0.00034117,3]
[392732664,1761885031903,-200.20858654,0.00034117,3]
[392732666,1761885031912,-166.42261994,0.00034279,60]
[392732668,1761885031927,-2.43738006,0.00034279,60]
[392732670,1761885031937,-168.86,0.00034379,60]
[392732672,1761885031946,-361.6343676,0.00034455,30]
[392732674,1761885031956,-168.86,0.00034479,60]
[392732676,1761885031965,-168.86,0.00034579,60]
[392732678,1761885031974,-168.86,0.00034679,60]
[392732680,1761885031982,-144.97353149,0.00034779,60]
[392732684,1761885031994,-23.90372597,0.00034779,60]
[392732687,1761885032003,-793.54084974,0.00035476,2]
[392732748,1761885037857,-135.45915026,0.00035476,2]
[392732750,1761885037867,-1221.0,0.00035814,3]
[392732752,1761885037876,-516.94482114,0.00035815,2]
[392732755,1761885037887,-150.0,0.00035907,2]
[392732756,1761885037896,-504.52391419,0.00036077,2]
[392732758,1761885037905,-929.0,0.00036103,7]
[392732760,1761885037915,-315.72853645,0.00036271,2]
[392732762,1761885037925,-201.46974402,0.00036308,2]
[392732764,1761885037934,-8643.41679087,0.00036515,2]
[392732766,1761885037943,-1229.93,0.00036521,10]
[392732768,1761885037952,-224.49933445,0.0003653,15]
[392732770,1761885037961,-42474.62575527,0.00036531,4]
[392732773,1761885037973,-3459.91468453,0.00036531,4]
[392732835,1761885040036,-4296.28886297,0.00036531,4]
[392732920,1761885042988,-2345.4,0.00036521,10]
[392732922,1761885042998,-500.0,0.0003653,15]
[392732924,1761885043007,-500.0,0.0003653,15]
[392732926,1761885043016,-500.0,0.0003653,2]
[392732928,1761885043025,-500.0,0.0003653,15]
[392732930,1761885043034,-500.0,0.0003653,15]
[392732931,1761885043044,-500.0,0.0003653,15]
[392732932,1761885043053,-500.0,0.0003653,2]
[392732933,1761885043062,-500.0,0.0003653,15]
[392732934,1761885043071,-500.0,0.0003653,15]
[392732935,1761885043080,-500.0,0.0003653,15]
[392732936,1761885043089,-436.40803035,0.0003653,2]
[392732937,1761885043098,-500.0,0.0003653,15]
[392732938,1761885043107,-500.0,0.0003653,15]
[392732939,1761885043116,-185.28545252,0.0003653,15]
[392732940,1761885043125,-500.0,0.0003653,15]
[392732941,1761885043134,-500.0,0.0003653,15]
[392732942,1761885043143,-500.0,0.0003653,2]
[392732943,1761885043152,-469.70672128,0.0003653,15]
[392732944,1761885043161,-500.0,0.0003653,15]
[392732945,1761885043173,-500.0,0.0003653,15]
[392732946,1761885043185,-500.0,0.0003653,2]
[392732947,1761885043197,-500.0,0.0003653,15]
[392732948,1761885043210,-500.0,0.0003653,15]
[392732949,1761885043222,-255.1018988,0.0003653,15]
[392732955,1761885341349,150.0,0.0002589,2]
[392732956,1761885483439,183.0,0.00018282,31]
[392732957,1761885483772,182.99,0.00018282,7]
[392732958,1761885654651,3041.980691,0.00037029,50]
[392732959,1761885875748,631.22608953,0.00025204,2]
[392732960,1761885906538,10000.0,0.00030137,120]
[392732962,1761885907985,500.0,0.000253,2]
[392732963,1761885908033,1001.7893388,0.00026396,2]
[392732964,1761885923050,10000.0,0.00030137,120]
[392732965,1761885934694,6731.22,0.00030137,120]
[392732966,1761885958456,150.0,0.0002589,2]
[392732967,1761885958809,177.0,0.0002789,2]
[392732968,1761885965699,-161.68885014,0.00029013,5]
[392732969,1761885983748,1226.0,0.000181,10]
[392732970,1761885984602,828.0,0.00030137,120]
[392732987,1761886232033,-185.94552596,0.00031035,30]
[392732989,1761886232043,-1121.0,0.00033241,2]
[392732990,1761886232052,-500.0,0.00033473,7]
[392732991,1761886232061,-78.2706062,0.00034127,2]
[392733012,1761886237949,-360.82507419,0.00033716,7]
[392733014,1761886238007,-760.17492581,0.00033716,7]
[392733015,1761886238018,-158.97436448,0.0003405,120]
[392733016,1761886238028,-1042.7293938,0.00034127,2]
[392733017,1761886238037,-1120.0,0.00034145,120]
[392733018,1761886238048,-1121.0,0.0003415,2]
[392733019,1761886238057,-1120.0,0.00034524,2]
[392733020,1761886238067,-1120.0,0.00034694,7]
[392733021,1761886238077,-1200.0,0.00034819,3]
[392733022,1761886238087,-1120.0,0.0003482,2]
[392733023,1761886238097,-300.0,0.00034885,3]
[392733024,1761886238106,-500.0,0.00034885,2]
[392733025,1761886238116,-500.0,0.00034885,7]
[392733026,1761886238126,-500.0,0.00034885,7]
[392733027,1761886238139,-500.0,0.00034885,7]
[392733028,1761886238149,-500.0,0.00034885,7]
[392733029,1761886238158,-500.0,0.00034885,2]
[392733030,1761886238168,-500.0,0.00034885,7]
[392733031,1761886238182,-500.0,0.00034885,7]
[392733032,1761886238192,-500.0,0.00034885,7]
[392733033,1761886238202,-500.0,0.00034885,2]
[392733034,1761886238211,-504.40470283,0.00034885,7]
[392733035,1761886238221,-500.0,0.00034885,7]
[392733036,1761886238230,-500.0,0.00034885,7]
[392733037,1761886238240,-500.0,0.00034885,7]
[392733038,1761886238250,-500.0,0.00034885,2]
[392733039,1761886238258,-157.17787689,0.00034885,7]
[392733041,1761886238268,-500.0,0.00034885,7]
[392733042,1761886238278,-500.0,0.00034885,7]
[392733044,1761886238287,-500.0,0.00034885,2]
[392733046,1761886238295,-500.0,0.00034885,7]
[392733048,1761886238304,-500.0,0.00034885,7]
[392733050,1761886238314,-500.0,0.00034885,7]
[392733052,1761886238323,-500.0,0.00034885,2]
[392733054,1761886238332,-500.0,0.00034885,7]
[392733056,1761886238341,-500.0,0.00034885,7]
[392733058,1761886238350,-500.0,0.00034885,2]
[392733060,1761886238360,-297.53055659,0.00034885,7]
[392733063,1761886238376,-202.46944341,0.00034885,7]
[392733065,1761886238384,-500.0,0.00034885,7]
[392733066,1761886238393,-500.0,0.00034885,7]
[392733068,1761886238403,-500.0,0.00034885,7]
[392733070,1761886238412,-500.0,0.00034885,7]
[392733073,1761886238422,-500.0,0.00034885,7]
[392733074,1761886238437,-500.0,0.00034885,2]
[392733077,1761886238446,-500.0,0.00034885,7]
[392733079,1761886238456,-500.0,0.00034885,7]
[392733081,1761886238465,-500.0,0.00034885,7]
[392733083,1761886238475,-500.0,0.00034885,7]
[392733085,1761886238484,-500.0,0.00034885,7]
[392733086,1761886238494,-500.0,0.00034885,2]
[392733088,1761886238504,-500.0,0.00034885,7]
[392733091,1761886238515,-611.42323577,0.00034885,2]
[392733093,1761886238524,-500.0,0.00034885,7]
[392733095,1761886238534,-500.0,0.00034885,7]
[392733097,1761886238543,-500.0,0.00034885,7]
[392733099,1761886238552,-500.0,0.00034885,7]
[392733101,1761886238562,-500.0,0.00034885,7]
[392733103,1761886238572,-500.0,0.00034885,7]
[392733105,1761886238581,-500.0,0.00034885,7]
[392733107,1761886238590,-500.0,0.00034885,7]
[392733109,1761886238599,-500.0,0.00034885,7]
[392733111,1761886238608,-500.0,0.00034885,7]
[392733113,1761886238617,-500.0,0.00034885,7]
[392733115,1761886238627,-500.0,0.00034885,7]
[392733116,1761886238635,-595.33939041,0.00034885,7]
[392733119,1761886238644,-608.70583974,0.00034885,7]
[392733121,1761886238654,-500.0,0.00034885,7]
[392733122,1761886238663,-500.0,0.00034885,7]
[392733124,1761886238672,-500.0,0.00034885,7]
[392733126,1761886238684,-500.0,0.00034885,7]
[392733129,1761886238693,-500.0,0.00034885,7]
[392733131,1761886238703,-500.0,0.00034885,7]
[392733133,1761886238712,-500.0,0.00034885,7]
[392733134,1761886238723,-500.0,0.00034885,7]
[392733136,1761886238732,-500.0,0.00034885,7]
[392733138,1761886238742,-500.0,0.00034885,7]
[392733140,1761886238751,-500.0,0.00034885,7]
[392733142,1761886238760,-500.0,0.00034885,7]
[392733144,1761886238770,-500.0,0.00034885,7]
[392733146,1761886238779,-500.0,0.00034885,7]
[392733148,1761886238788,-500.0,0.00034885,7]
[392733150,1761886238798,-500.0,0.00034885,7]
[392733152,1761886238807,-500.0,0.00034885,7]
[392733154,1761886238816,-500.0,0.00034885,7]
[392733156,1761886238826,-500.0,0.00034885,7]
[392733158,1761886238835,-500.0,0.00034885,7]
[392733160,1761886238846,-500.0,0.00034885,7]
[392733162,1761886238855,-500.0,0.00034885,7]
[392733164,1761886238864,-500.0,0.00034885,7]
[392733166,1761886238873,-250.22274502,0.00034885,7]
[392733168,1761886238883,-302.0,0.00034886,3]
[392733170,1761886238892,-300.0,0.00034886,2]
[392733172,1761886238901,-300.0,0.00034886,3]
[392733174,1761886238911,-170.0,0.00034886,3]
[392733176,1761886238920,-43933.07952355,0.00034886,2]
[392733184,1761886238983,-5231.93822584,0.00034886,2]
[392733217,1761886240278,-2009.88821719,0.00034877,10]
[392733244,1761886243176,-1121.0,0.00033528,7]
[392733245,1761886243187,-134.01178281,0.00034877,10]
[392733246,1761886243196,-500.0,0.00034885,3]
[392733247,1761886243205,-834.98225061,0.00034886,2]
[392733248,1761886243214,-160.0,0.00034886,2]
[392733249,1761886243223,-160.0,0.00034887,2]
[392733250,1761886243233,-1542.0,0.00034887,3]
[392733251,1761886243242,-2993.2666907,0.00034888,2]
[392733252,1761886243252,-400.50423036,0.00035,2]
[392733253,1761886243261,-500.0,0.00035159,3]
[392733254,1761886243270,-1119.0,0.00035191,7]
[392733255,1761886243279,-2506.64,0.00035226,10]
[392733256,1761886243288,-355.02765302,0.00035236,7]
[392733257,1761886243297,-151.0,0.00035236,31]
[392733258,1761886243307,-151.0,0.00035236,31]
[392733259,1761886243316,-151.0,0.00035236,31]
[392733260,1761886243325,-153.644116,0.00035236,31]
[392733261,1761886243335,-159.97172,0.00035236,31]
[392733262,1761886243344,-159.97172,0.00035236,31]
[392733263,1761886243353,-159.97172,0.00035236,31]
[392733264,1761886243362,-159.97172,0.00035236,31]
[392733265,1761886243371,-159.969289,0.00035236,31]
[392733266,1761886243380,-151.0,0.00035236,31]
[392733267,1761886243389,-151.0,0.00035236,31]
[392733268,1761886243398,-151.949623,0.00035236,31]
[392733269,1761886243409,-153.579851,0.00035236,30]
[392733270,1761886243418,-1120.0,0.00035238,7]
[392733271,1761886243427,-151.0,0.00035238,31]
[392733272,1761886243441,-151.0,0.00035238,31]
[392733273,1761886243451,-153.808167,0.00035238,31]
[392733274,1761886243462,-159.97172,0.00035238,31]
[392733275,1761886243471,-159.97172,0.00035238,31]
[392733276,1761886243483,-159.97172,0.00035238,31]
[392733277,1761886243493,-159.97172,0.00035238,31]
[392733278,1761886243502,-1119.0,0.00035259,7]
[392733279,1761886243511,-503.71908198,0.00035264,2]
[392733280,1761886243521,-500.0,0.00035264,5]
[392733281,1761886243530,-500.0,0.00035264,5]
[392733282,1761886243539,-475.55021458,0.00035264,5]
[392733283,1761886243548,-500.0,0.00035264,5]
[392733284,1761886243557,-500.0,0.00035264,5]
[392733285,1761886243566,-500.0,0.00035264,5]
[392733286,1761886243575,-501.32550214,0.00035264,5]
[392733287,1761886243583,-501.6656851,0.00035264,5]
[392733288,1761886243593,-500.84778786,0.00035264,5]
[392733289,1761886243604,-208.73908565,0.00035264,5]
[392733290,1761886243614,-170.07363156,0.00035264,5]
[392733291,1761886243624,-500.0,0.00035264,5]
[392733292,1761886243634,-500.0,0.00035264,3]
[392733293,1761886243643,-518.86943113,0.00035264,5]
[392733294,1761886243652,-500.0,0.00035264,5]
[392733295,1761886243661,-500.0,0.00035264,5]
[392733296,1761886243670,-500.0,0.00035264,5]
[392733297,1761886243679,-500.0,0.00035264,2]
[392733298,1761886243689,-502.11439504,0.00035264,5]
[392733299,1761886243697,-230.50739,0.00035264,5]
[392733300,1761886243706,-500.46992874,0.00035264,5]
[392733301,1761886243716,-151.0,0.00035429,31]
[392733302,1761886243725,-270.409373,0.00035429,31]
[392733303,1761886243734,-1120.0,0.00035429,2]
[392733304,1761886243743,-1119.0,0.00035568,2]
[392733305,1761886243752,-1119.0,0.00035639,7]
[392733306,1761886243761,-1119.0,0.00035743,2]
[392733307,1761886243770,-502.72569814,0.00035812,5]
[392733308,1761886243779,-504.72282247,0.00035812,5]
[392733309,1761886243788,-502.66928036,0.00035812,5]
[392733310,1761886243797,-1000.0,0.00035812,5]
[392733311,1761886243806,-1004.31750824,0.00035812,3]
[392733312,1761886243815,-1000.0,0.00035812,5]
[392733313,1761886243824,-1000.0,0.00035812,5]
[392733314,1761886243833,-1003.21356152,0.00035812,5]
[392733315,1761886243842,-503.94834887,0.00035812,2]
[392733316,1761886243851,-1119.0,0.00035992,2]
[392733317,1761886243860,-1119.0,0.00036315,120]
[392733318,1761886243869,-1119.0,0.00036328,2]
[392733319,1761886243878,-1119.0,0.00036341,2]
[392733320,1761886243886,-2726.9991505,0.00036347,2]
[392733321,1761886243895,-503.02617481,0.0003636,5]
[392733322,1761886243904,-500.0,0.0003636,5]
[392733323,1761886243913,-2726.9991505,0.00036394,2]
[392733324,1761886243996,-151.0,0.00036394,31]
[392733325,1761886244006,-151.0,0.00036394,31]
[392733326,1761886244015,-159.97172,0.00036394,31]
[392733327,1761886244025,-159.97172,0.00036394,31]
[392733328,1761886244034,-159.97172,0.00036394,31]
[392733329,1761886244043,-159.97172,0.00036394,31]
[392733330,1761886244052,-5841.10042985,0.0003642,2]
[392733331,1761886244061,-151.0,0.0003642,31]
[392733332,1761886244071,-500.0,0.0003643,2]
[392733333,1761886244080,-853.99,0.00036431,31]
[392733334,1761886244089,-232.83,0.00036437,3]
[392733335,1761886244098,-698.54,0.00036437,3]
[392733336,1761886244107,-826.18977656,0.00036437,3]
[392733337,1761886244116,-206.54744414,0.00036439,3]